bitfinex/quotes_ETHUSD_20230102
["timestamp","ask_amount","ask_price","bid_price","bid_amount"]
[1672693579532,3.77467947,1220.0,1219.8,31.83577152]
[1672693579684,3.70867947,1220.0,1219.8,31.83577152]
[1672693581064,3.6885269,1219.9,1219.8,31.83577152]
[1672693587830,4.30395642,1219.9,1219.8,15.43965152]
[1672693588700,4.30395642,1219.9,1219.8,7.24172152]
[1672693589470,4.30395642,1219.9,1219.8,3.09007961]
[1672693589642,6.8911943,1219.9,1219.8,2.99467965]
[1672693591632,15.0885843,1219.9,1219.8,2.99467965]
[1672693591849,15.0885843,1219.9,1219.7,3.09539996]
[1672693592046,3.68867408,1219.8,1219.7,7.14886114]
[1672693592250,3.68867408,1219.8,1219.7,7.2442611]
[1672693593509,5.57299992,1219.8,1219.7,11.29412996]
[1672693593724,17.20834226,1219.8,1219.7,3.09539996]
[1672693594052,28.69450708,1219.8,1219.5,0.09539996]
[1672693594260,4.303476,1219.6,1219.4,30.04539996]
[1672693594512,3.68874726,1219.5,1219.4,4.2442611]
[1672693594671,3.68874726,1219.5,1219.4,4.14886114]
[1672693595362,3.0703042,1219.5,1219.4,4.14886114]
[1672693596092,3.0703042,1219.5,1219.4,7.14886114]
[1672693596240,3.0703042,1219.5,1219.4,7.2442611]
[1672693596914,3.0703042,1219.5,1219.4,3.09539996]
[1672693597185,3.0703042,1219.5,1219.4,3.0]
[1672693598301,3.0703042,1219.5,1219.4,11.20075]
[1672693598531,3.0703042,1219.5,1219.4,19.49689996]
[1672693598934,3.1363042,1219.6,1219.4,19.49689996]
[1672693599286,3.0703042,1219.6,1219.4,19.49689996]
[1672693601326,3.0703042,1219.6,1219.4,27.69764996]
[1672693612984,3.0703042,1219.6,1219.5,4.14886114]
[1672693613192,3.1363042,1219.7,1219.5,5.56586114]
[1672693613421,0.6155,1219.8,1219.6,3.0]
[1672693613422,3.1363042,1219.8,1219.6,3.0]
[1672693613598,12.94144726,1219.9,1219.6,11.19889]
[1672693613599,3.0703042,1219.7,1219.6,11.19889]
[1672693613947,3.0703042,1219.7,1219.6,27.69308996]
[1672693614619,3.1363042,1219.8,1219.6,27.69308996]
[1672693614924,3.0703042,1219.7,1219.6,31.8419511]
[1672693615229,3.1363042,1219.8,1219.6,31.8419511]
[1672693615382,3.0703042,1219.7,1219.6,31.8419511]
[1672693615593,13.00744726,1219.9,1219.6,31.8419511]
[1672693615594,3.1363042,1219.8,1219.6,31.8419511]
[1672693615802,3.0703042,1219.8,1219.6,31.8419511]
[1672693616067,3.0703042,1219.8,1219.6,31.83842272]
[1672693616387,3.0703042,1219.7,1219.6,31.83842272]
[1672693618427,3.0703042,1219.7,1219.6,7.24073272]
[1672693618799,3.75474726,1219.8,1219.6,15.44013272]
[1672693619007,5.56033959,1219.8,1219.6,23.63953272]
[1672693619222,3.68874726,1219.7,1219.6,23.63953272]
[1672693619448,3.68874726,1219.7,1219.6,15.44013272]
[1672693620114,3.68874726,1219.7,1219.6,23.63953272]
[1672693620324,5.62633959,1219.8,1219.6,23.63953272]
[1672693620534,5.56033959,1219.8,1219.6,31.83893272]
[1672693620744,3.06707248,1219.7,1219.6,31.83893272]
[1672693621415,5.62633959,1219.8,1219.6,31.83893272]
[1672693621647,3.68874726,1219.8,1219.6,31.83893272]
[1672693621847,3.68874726,1219.8,1219.6,23.63953272]
[1672693622748,23.224736,1219.9,1219.6,23.63953272]
[1672693622749,3.68874726,1219.7,1219.6,23.63953272]
[1672693622963,3.68874726,1219.7,1219.6,7.24073272]
[1672693623367,3.68874726,1219.7,1219.6,23.63953272]
[1672693623850,3.75474726,1219.8,1219.6,23.63953272]
[1672693624065,3.68874726,1219.8,1219.6,31.83893272]
[1672693624740,3.68874726,1219.7,1219.6,31.83893272]
[1672693625088,3.75474726,1219.8,1219.6,31.83893272]
[1672693625275,3.68874726,1219.8,1219.6,31.83893272]
[1672693625491,3.68874726,1219.7,1219.6,31.83893272]
[1672693625905,3.75474726,1219.8,1219.6,31.83893272]
[1672693626118,3.069472,1219.7,1219.6,31.83893272]
[1672693627256,3.0708315,1219.7,1219.6,31.83893272]
[1672693630778,3.0708315,1219.7,1219.6,33.25593272]
[1672693631839,3.0708315,1219.7,1219.6,33.66369776]
[1672693632930,3.1368315,1219.8,1219.6,33.66369776]
[1672693633140,3.0708315,1219.8,1219.7,8.14886114]
[1672693633349,12.39194726,1219.9,1219.7,35.8404511]
[1672693633705,3.0706966,1219.8,1219.7,28.69158996]
[1672693633916,3.1366966,1219.9,1219.7,43.05935972]
[1672693634091,3.0706966,1219.9,1219.8,8.55386114]
[1672693634334,3.0706966,1219.9,1219.8,33.2434411]
[1672693635540,8.03715257,1220.0,1219.9,28.59217]
[1672693635541,11.10784917,1220.0,1219.9,28.59217]
[1672693635755,3.09084917,1220.0,1219.9,35.8364311]
[1672693637414,3.09084917,1220.0,1219.9,37.2444311]
[1672693641410,0.02015257,1220.0,1219.9,37.2444311]
[1672693645165,3.09084917,1220.0,1219.9,37.2444311]
[1672693645377,3.09084917,1220.0,1219.9,33.24112644]
[1672693645840,3.09084917,1220.0,1219.9,31.83312644]
[1672693647110,3.08439756,1220.0,1219.9,31.83312644]
[1672693647430,3.08439756,1220.0,1219.9,23.63573644]
[1672693649495,3.08439756,1220.0,1219.9,31.83312644]
[1672693651259,3.08439756,1220.0,1219.9,23.63573644]
[1672693651719,3.08439756,1220.0,1219.9,31.83312644]
[1672693664185,0.02015257,1220.0,1219.9,31.83312644]
[1672693664365,3.08439756,1220.0,1219.9,31.83312644]
[1672693669711,3.08439756,1220.0,1219.9,31.83047379]
[1672693672256,0.02015257,1220.0,1219.9,31.83047379]
[1672693672472,3.09239656,1220.0,1219.9,31.83047379]
[1672693672881,3.70889983,1220.0,1219.9,23.63308379]
[1672693673558,0.02015257,1220.0,1219.9,23.63308379]
[1672693674087,3.70889983,1220.0,1219.9,31.83047379]
[1672693674931,0.02015257,1220.0,1219.9,31.83047379]
[1672693680360,3.70889983,1220.0,1219.9,31.83047379]
[1672693680614,0.02015257,1220.0,1219.9,31.83047379]
[1672693685168,3.70889983,1220.0,1219.9,23.63308379]
[1672693685376,0.02015257,1220.0,1219.9,23.63308379]
[1672693687954,0.02015257,1220.0,1219.9,31.83047379]
[1672693689901,0.02015257,1220.0,1219.9,23.63308379]
[1672693690264,3.70889983,1220.0,1219.9,23.63308379]
[1672693693776,3.70889983,1220.0,1219.9,31.83047379]
[1672693694181,3.70889983,1220.0,1219.9,31.82816101]
[1672693703489,3.70889983,1220.0,1219.9,15.43338101]
[1672693705960,3.70889983,1220.0,1219.9,23.63077101]
[1672693706171,3.70889983,1220.0,1219.9,31.82816101]
[1672693717535,3.09645981,1220.0,1219.9,31.82470563]
[1672693725490,0.02015257,1220.0,1219.9,31.82470563]
[1672693726259,3.70889983,1220.0,1219.9,31.82470563]
[1672693729180,0.02015257,1220.0,1219.9,31.82470563]
[1672693731236,3.09502187,1220.0,1219.9,31.82470563]
[1672693733209,3.70889983,1220.0,1219.9,31.82470563]
[1672693736344,0.02015257,1220.0,1219.9,31.82470563]
[1672693736673,3.09498329,1220.0,1219.9,31.82470563]
[1672693737880,3.09498329,1220.0,1219.9,31.82089261]
[1672693747876,3.70889983,1220.0,1219.9,31.82089261]
[1672693762554,3.70889983,1220.0,1219.9,31.8177783]
[1672693768242,0.02015257,1220.0,1219.9,7.2442611]
[1672693768433,4.32362857,1220.0,1219.9,7.2442611]
[1672693774638,4.303476,1220.0,1219.9,7.2442611]
[1672693775251,4.32362857,1220.0,1219.9,7.2442611]
[1672693775922,0.02015257,1220.0,1219.9,7.2442611]
[1672693777952,3.70658519,1220.0,1219.9,7.2442611]
[1672693778167,3.70658519,1220.0,1219.9,15.4416511]
[1672693782055,3.70658519,1220.0,1219.9,23.6390411]
[1672693785048,3.70658519,1220.0,1219.9,31.8364311]
[1672693786256,3.70658519,1220.0,1219.9,31.83368729]
[1672693789155,0.02015257,1220.0,1219.9,31.83368729]
[1672693790199,4.32362857,1220.0,1219.9,31.83368729]
[1672693790947,5.27093953,1220.0,1219.9,3.09265615]
[1672693791156,5.27093953,1220.0,1219.9,3.0]
[1672693792435,4.32362857,1220.0,1219.9,3.0]
[1672693792610,4.32362857,1220.0,1219.9,11.19739]
[1672693792823,4.32362857,1220.0,1219.9,11.29004615]
[1672693800289,0.02015257,1220.0,1219.9,11.29004615]
[1672693800968,0.02015257,1220.0,1219.9,19.48743615]
[1672693801142,4.32362857,1220.0,1219.9,19.48743615]
[1672693801578,0.02015257,1220.0,1219.9,19.48743615]
[1672693802712,4.32362857,1220.0,1219.9,19.48743615]
[1672693803354,0.02015257,1220.0,1219.9,19.48743615]
[1672693803616,4.32362857,1220.0,1219.9,19.48743615]
[1672693809437,4.32362857,1220.0,1219.9,19.48502677]
[1672693827500,4.32142524,1220.0,1219.9,19.48502677]
[1672693827710,4.32142524,1220.0,1219.9,16.48743615]
[1672693843595,4.32142524,1220.0,1219.9,8.29004615]
[1672693843804,5.10143026,1220.0,1219.9,0.09265615]
[1672693843997,5.10143026,1220.0,1219.8,8.29009615]
[1672693844205,4.3067785,1219.9,1219.8,8.29009615]
[1672693844416,4.3067785,1219.9,1219.8,11.29009615]
[1672693846264,4.3067785,1219.9,1219.8,19.48815615]
[1672693847673,4.39072774,1220.0,1219.8,19.48815615]
[1672693847885,4.32472774,1220.0,1219.8,19.48815615]
[1672693848348,8.32423912,1220.0,1219.8,19.48815615]
[1672693848938,4.32423912,1220.0,1219.8,19.48815615]
[1672693849201,8.32423912,1220.0,1219.8,19.48815615]
[1672693849896,4.32423912,1220.0,1219.8,19.48815615]
[1672693850108,4.32423912,1220.0,1219.8,19.48528644]
[1672693850888,4.30628988,1219.9,1219.8,3.09265615]
[1672693851046,4.30628988,1219.9,1219.8,3.0]
[1672693851875,6.15722913,1220.0,1219.8,3.0]
[1672693852126,6.09122913,1220.0,1219.8,3.0]
[1672693852412,6.09122913,1220.0,1219.8,11.19805]
[1672693852671,4.30628988,1219.9,1219.8,11.29070615]
[1672693854266,6.15722913,1220.0,1219.8,11.29070615]
[1672693854423,4.32423912,1220.0,1219.8,11.29070615]
[1672693855893,3.69131405,1219.9,1219.8,11.29070615]
[1672693857189,3.69131405,1219.9,1219.8,3.09265615]
[1672693857527,3.69131405,1219.9,1219.8,11.19805]
[1672693857673,3.69131405,1219.9,1219.8,11.29070615]
[1672693860112,9.47372014,1220.0,1219.8,11.29070615]
[1672693860302,4.32423912,1220.0,1219.8,11.29070615]
[1672693860512,4.32423912,1220.0,1219.8,19.48876615]
[1672693860723,3.69142096,1219.9,1219.8,19.48876615]
[1672693869584,3.69142096,1219.9,1219.8,27.68682615]
[1672693873122,3.69142096,1219.9,1219.8,31.83568729]
[1672693873335,3.07540705,1219.9,1219.8,31.83568729]
[1672693874504,3.07540705,1219.9,1219.8,31.83182749]
[1672693879220,3.14140705,1220.0,1219.8,33.24882749]
[1672693879426,3.07540705,1220.0,1219.9,34.15603114]
[1672693879692,3.07540705,1220.0,1219.9,37.24868729]
[1672693879861,3.69142096,1220.0,1219.9,33.24868729]
[1672693880093,4.37228988,1220.1,1219.9,33.24868729]
[1672693880265,4.30628988,1220.1,1219.9,33.24868729]
[1672693882683,3.68837803,1220.0,1219.9,33.24868729]
[1672693882892,3.68837739,1220.0,1219.9,33.24868729]
[1672693883159,3.68847006,1220.0,1219.9,33.24868729]
[1672693886784,1.286332,1220.1,1219.9,33.24868729]
[1672693886989,1.220332,1220.1,1219.9,33.24868729]
[1672693887434,1.220332,1220.1,1219.9,31.83368729]
[1672693891156,13.74207522,1220.2,1219.9,31.83368729]
[1672693891370,13.67607522,1220.2,1219.9,31.83368729]
[1672693891722,4.30411857,1220.1,1219.9,31.83368729]
[1672693892801,4.30411857,1220.0,1219.9,31.83368729]
[1672693907510,4.30411857,1220.0,1219.9,31.83114867]
[1672693912356,4.30611857,1220.0,1219.9,31.82857937]
[1672693912566,4.30611857,1220.0,1219.9,31.83114867]
[1672693912567,4.30411857,1220.0,1219.9,31.83114867]
[1672693913725,5.14948102,1220.1,1219.9,31.83114867]
[1672693913726,4.37011857,1220.1,1219.9,31.83114867]
[1672693913889,4.30411857,1220.1,1219.9,31.83114867]
[1672693914103,4.30411857,1220.0,1219.9,31.83114867]
[1672693917733,4.30411857,1220.0,1219.9,7.23897867]
[1672693917962,12.50083857,1220.0,1219.9,7.23897867]
[1672693918193,4.30411857,1220.0,1219.9,7.23897867]
[1672693918751,12.50083857,1220.0,1219.9,7.23897867]
[1672693920303,12.85343655,1220.0,1219.9,3.09265615]
[1672693920520,12.85343655,1220.0,1219.9,3.0]
[1672693920521,8.54931798,1220.0,1219.9,3.0]
[1672693921043,5.08348102,1220.0,1219.9,3.0]
[1672693922288,30.35413102,1220.1,1219.9,3.0]
[1672693922512,30.28813102,1220.1,1219.9,3.0]
[1672693923563,22.09153102,1220.1,1219.9,3.0]
[1672693923737,8.30577577,1220.0,1219.9,3.0]
[1672693923944,4.30577577,1220.0,1219.9,3.0]
[1672693925468,11.7298117,1220.0,1219.8,0.09265615]
[1672693925651,4.30578059,1219.9,1219.7,24.05955615]
[1672693925819,3.69067222,1219.8,1219.7,28.20841729]
[1672693926029,3.69067222,1219.8,1219.7,20.63801729]
[1672693926700,3.69067222,1219.8,1219.7,23.63801729]
[1672693927311,3.69067222,1219.8,1219.7,31.83674729]
[1672693930766,3.69067222,1219.8,1219.7,31.83371333]
[1672693932353,3.07408702,1219.8,1219.7,31.83371333]
[1672693934339,3.11219544,1219.8,1219.7,31.83371333]
[1672693951992,3.10841264,1219.8,1219.7,31.83371333]
[1672693956492,3.11041264,1219.8,1219.7,31.83114403]
[1672693956700,3.10841264,1219.8,1219.7,31.83371333]
[1672693961766,0.03810842,1219.8,1219.7,31.83371333]
[1672693962504,3.07030422,1219.9,1219.7,31.83371333]
[1672693962745,3.07030422,1219.9,1219.8,3.0]
[1672693963051,3.07030422,1219.9,1219.8,27.59418]
[1672693963227,3.07030422,1219.9,1219.8,27.68683615]
[1672693964796,3.07030422,1219.9,1219.8,33.25269729]
[1672693965843,11.31210422,1220.0,1219.8,33.25269729]
[1672693966056,11.24610422,1220.0,1219.9,4.14886114]
[1672693966320,3.07030422,1220.0,1219.9,31.74103114]
[1672693966578,3.07030422,1220.0,1219.9,31.83368729]
[1672693968118,3.07349344,1220.0,1219.9,31.83368729]
[1672693973158,3.07349344,1220.0,1219.9,31.83143346]
[1672693980281,3.07349344,1220.0,1219.9,31.98575838]
[1672693995268,3.07349344,1220.0,1219.9,31.98178798]
[1672694002359,3.75667222,1220.1,1219.9,31.98178798]
[1672694002570,3.69067222,1220.1,1219.9,31.98178798]
[1672694004355,3.69067222,1220.0,1219.9,31.98178798]
[1672694004902,3.69267222,1220.0,1219.9,31.97921868]
[1672694005090,3.69067222,1220.0,1219.9,31.98178798]
[1672694015900,4.4969175,1220.0,1219.9,15.58700798]
[1672694016790,4.4969175,1220.0,1219.9,15.58366487]
[1672694017350,3.69067222,1220.0,1219.9,15.58366487]
[1672694017746,3.69067222,1220.0,1219.9,7.38627487]
[1672694017963,11.88739222,1220.0,1219.9,7.38627487]
[1672694018377,3.69067222,1220.0,1219.9,3.24698107]
[1672694018625,3.69067222,1220.0,1219.9,27.74649492]
[1672694018831,3.69067222,1220.0,1219.9,27.83915107]
[1672694030822,4.37178059,1220.1,1219.9,27.83915107]
[1672694031108,6.26104617,1220.1,1219.9,19.64176107]
[1672694031677,3.68887674,1220.0,1219.9,19.64176107]
[1672694031942,3.68879224,1220.0,1219.9,19.64176107]
[1672694032728,3.68879224,1220.0,1219.9,27.83915107]
[1672694040587,3.68879224,1220.0,1219.9,19.64176107]
[1672694041727,3.68879224,1220.0,1219.9,19.63967293]
[1672694041896,3.68879224,1220.0,1219.9,27.83706293]
[1672694042321,3.68879224,1220.0,1219.9,19.63967293]
[1672694042951,3.68879224,1220.0,1219.9,27.83706293]
[1672694043991,3.68879224,1220.0,1219.9,19.63967293]
[1672694048379,3.68879224,1220.0,1219.9,27.83706293]
[1672694048583,5.71005782,1220.1,1219.9,27.83706293]
[1672694048753,5.64405782,1220.1,1219.9,27.83706293]
[1672694048939,3.68879224,1220.0,1219.9,27.83706293]
[1672694051216,5.71005782,1220.1,1219.9,27.83706293]
[1672694051427,5.64405782,1220.1,1219.9,27.83706293]
[1672694052443,3.68879224,1220.0,1219.9,27.83706293]
[1672694055523,3.68879224,1220.0,1219.9,19.63967293]
[1672694055907,3.68879224,1220.0,1219.9,27.83706293]
[1672694058435,3.68879224,1220.0,1219.9,19.63967293]
[1672694058665,4.69037608,1220.0,1219.9,19.63967293]
[1672694059285,4.69150419,1220.0,1219.9,19.63967293]
[1672694060309,5.30736443,1220.0,1219.9,19.63967293]
[1672694060523,1.00158384,1220.0,1219.9,19.63967293]
[1672694061599,4.69125646,1220.0,1219.9,27.83706293]
[1672694064131,4.69125646,1220.0,1219.9,27.83328474]
[1672694064517,3.68967262,1220.0,1219.9,27.83328474]
[1672694066975,3.68967262,1220.0,1219.9,19.63589474]
[1672694068830,10.32704617,1220.1,1219.9,19.63589474]
[1672694069045,4.30578059,1220.0,1219.9,19.63589474]
[1672694069404,10.32704617,1220.1,1219.9,19.63589474]
[1672694069635,10.26104617,1220.1,1219.9,19.63589474]
[1672694070521,4.30578059,1220.0,1219.9,11.43850474]
[1672694070667,5.84023331,1220.0,1219.9,3.24111474]
[1672694070878,5.84023331,1220.0,1219.9,11.34584859]
[1672694071249,5.84023331,1220.0,1219.9,11.43850474]
[1672694074038,5.84023331,1220.0,1219.9,3.24111474]
[1672694074241,5.84023331,1220.0,1219.9,3.14845859]
[1672694078985,5.84023331,1220.0,1219.9,0.15432492]
[1672694079216,22.23367331,1220.0,1219.9,0.15432492]
[1672694079614,14.03695331,1220.0,1219.9,0.15432492]
[1672694080659,5.84023331,1220.0,1219.9,0.15432492]
[1672694083381,14.03695331,1220.0,1219.9,0.15432492]
[1672694085091,14.03695331,1220.0,1219.9,0.15176817]
[1672694090675,22.23367331,1220.0,1219.9,0.15176817]
[1672694090886,17.92789272,1220.0,1219.9,0.15176817]
[1672694091113,22.22986922,1220.0,1219.9,0.15176817]
[1672694091543,17.92789272,1220.0,1219.9,0.15176817]
[1672694092119,17.92789272,1220.0,1219.9,24.74393817]
[1672694092120,5.22128976,1220.0,1219.9,24.74393817]
[1672694092370,3.68670504,1220.0,1219.9,24.83659432]
[1672694092587,10.93786947,1220.1,1219.9,24.83659432]
[1672694092855,4.30120389,1220.0,1219.9,24.83659432]
[1672694098021,4.29823282,1220.0,1219.9,24.83659432]
[1672694100251,2.63666558,1220.1,1219.9,24.83659432]
[1672694100581,2.57066558,1220.1,1219.9,24.83659432]
[1672694101149,0.6154,1220.1,1219.9,24.83659432]
[1672694101475,3.68892111,1220.0,1219.9,24.83659432]
[1672694102421,1.96282111,1220.0,1219.9,24.83659432]
[1672694113097,4.36973206,1220.1,1219.9,24.83659432]
[1672694113320,4.30373206,1220.1,1219.9,24.83659432]
[1672694113812,4.30373206,1220.0,1219.9,24.83659432]
[1672694115256,4.36973206,1220.1,1219.9,24.83659432]
[1672694115453,4.30373206,1220.1,1219.9,24.83659432]
[1672694117183,4.30373206,1220.0,1219.9,24.83659432]
[1672694118767,3.68789006,1220.0,1219.9,24.83659432]
[1672694119132,3.68789006,1220.0,1219.9,28.98545546]
[1672694119383,3.68789006,1220.0,1219.9,33.40245546]
[1672694119715,3.75389006,1220.1,1219.9,33.40245546]
[1672694120028,3.68789006,1220.1,1220.0,4.14886114]
[1672694120174,3.68789006,1220.1,1220.0,28.73902114]
[1672694120389,3.68789006,1220.1,1220.0,28.83167729]
[1672694127170,3.68789006,1220.1,1220.0,28.82801754]
[1672694129937,4.30373206,1220.1,1220.0,28.82801754]
[1672694131075,4.38612626,1220.2,1220.0,28.82801754]
[1672694131285,4.32012626,1220.2,1220.0,28.82801754]
[1672694134653,4.30373206,1220.1,1220.0,28.82801754]
[1672694135856,4.38612626,1220.2,1220.0,28.82801754]
[1672694136083,3.68806402,1220.1,1220.0,28.82801754]
[1672694136741,4.30373206,1220.1,1220.0,28.82801754]
[1672694150112,4.30373206,1220.1,1220.0,28.82543554]
[1672694154888,4.30373206,1220.1,1220.0,24.68281615]
[1672694155206,5.25069279,1220.1,1220.0,24.68281615]
[1672694155579,0.94696073,1220.1,1220.0,24.68281615]
[1672694155729,5.25227733,1220.1,1220.0,8.28937615]
[1672694156816,0.94696073,1220.1,1220.0,8.28937615]
[1672694157762,0.94696073,1220.1,1220.0,16.48609615]
[1672694158075,0.94696073,1220.1,1220.0,8.28937615]
[1672694160985,5.25282022,1220.1,1220.0,8.28937615]
[1672694161200,5.25282022,1220.1,1220.0,24.68281615]
[1672694162045,5.25282022,1220.1,1220.0,16.48609615]
[1672694162264,5.25282022,1220.1,1220.0,8.28937615]
[1672694164933,5.25282022,1220.1,1220.0,0.09265615]
[1672694165081,6.03044175,1220.1,1219.9,35.54277432]
[1672694165293,4.30598458,1220.0,1219.9,39.69163546]
[1672694165518,4.30598458,1220.0,1219.9,31.98403546]
[1672694167073,4.30798458,1220.0,1219.9,31.98146616]
[1672694167287,4.30598458,1220.0,1219.9,31.98403546]
[1672694167930,4.30598458,1220.0,1219.9,27.83517432]
[1672694167931,0.53189453,1220.0,1219.9,27.83517432]
[1672694168145,8.40537555,1220.0,1219.9,0.24442432]
[1672694168352,8.40537555,1220.0,1219.9,0.15176817]
[1672694168566,11.62594597,1220.0,1219.9,0.15176817]
[1672694168899,10.15894597,1220.0,1219.9,0.15176817]
[1672694170075,6.15894597,1220.0,1219.9,0.15176817]
[1672694171603,10.15894597,1220.0,1219.9,0.15176817]
[1672694173494,6.15894597,1220.0,1219.9,0.15176817]
[1672694176008,10.15894597,1220.0,1219.9,0.15176817]
[1672694176218,19.13509555,1220.0,1219.9,0.15176817]
[1672694176428,14.05161453,1220.0,1219.9,0.15176817]
[1672694176675,19.13509555,1220.0,1219.9,0.15176817]
[1672694176891,14.05161453,1220.0,1219.9,0.15176817]
[1672694177530,5.85489453,1220.0,1219.9,0.15176817]
[1672694177690,10.15617824,1220.0,1219.9,0.15176817]
[1672694177902,14.05161453,1220.0,1219.9,0.15176817]
[1672694178133,18.35285306,1220.0,1219.9,0.15176817]
[1672694190991,18.35285306,1220.0,1219.9,0.1483085]
[1672694191525,18.35274871,1220.0,1219.9,0.1483085]
[1672694192191,14.35274871,1220.0,1219.9,0.1483085]
[1672694192406,4.78302871,1220.0,1219.9,0.1483085]
[1672694197141,0.48189453,1220.0,1219.9,0.1483085]
[1672694198230,1.85489453,1220.0,1219.9,0.1483085]
[1672694199267,10.05161453,1220.0,1219.9,0.1483085]
[1672694199848,0.48189453,1220.0,1219.9,0.1483085]
[1672694200257,4.78537693,1220.0,1219.9,0.1483085]
[1672694201471,0.48189453,1220.0,1219.9,0.1483085]
[1672694202771,5.56537555,1220.0,1219.9,0.1483085]
[1672694203699,13.76209555,1220.0,1219.9,0.1483085]
[1672694211454,13.76209555,1220.0,1219.9,0.14569628]
[1672694211938,30.15553555,1220.0,1219.9,0.14569628]
[1672694213248,31.17176362,1220.0,1219.9,0.14569628]
[1672694216572,25.07205453,1220.0,1219.9,0.14569628]
[1672694217599,31.17176362,1220.0,1219.9,0.14569628]
[1672694218441,25.07205453,1220.0,1219.9,0.14569628]
[1672694218696,31.17176362,1220.0,1219.9,0.14569628]
[1672694220274,25.07205453,1220.0,1219.9,0.14569628]
[1672694221579,31.17176362,1220.0,1219.9,0.14569628]
[1672694221790,25.07205453,1220.0,1219.9,0.14569628]
[1672694222148,31.17176362,1220.0,1219.9,0.14569628]
[1672694222316,25.07205453,1220.0,1219.9,0.14569628]
[1672694222536,30.15700092,1220.0,1219.9,0.14569628]
[1672694222743,25.07205453,1220.0,1219.9,0.14569628]
[1672694223480,30.1570038,1220.0,1219.9,0.14569628]
[1672694224109,25.07205453,1220.0,1219.9,0.14569628]
[1672694224378,30.15678714,1220.0,1219.9,0.14569628]
[1672694224561,21.96006714,1220.0,1219.9,0.14569628]
[1672694226375,16.87533453,1220.0,1219.9,0.14569628]
[1672694226549,21.95963791,1220.0,1219.9,0.14569628]
[1672694229639,16.87533453,1220.0,1219.9,0.14569628]
[1672694229999,21.9593887,1220.0,1219.9,0.14569628]
[1672694231377,21.95934267,1220.0,1219.9,0.14569628]
[1672694234950,13.76262267,1220.0,1219.9,0.14569628]
[1672694236071,13.76262267,1220.0,1219.9,0.14335087]
[1672694236072,8.67861453,1220.0,1219.9,0.14335087]
[1672694236733,14.77832362,1220.0,1219.9,0.14335087]
[1672694237999,22.97504362,1220.0,1219.9,0.14335087]
[1672694238415,14.77832362,1220.0,1219.9,0.14335087]
[1672694238631,22.97504362,1220.0,1219.9,0.14335087]
[1672694239096,16.87533453,1220.0,1219.9,0.14335087]
[1672694239688,8.67861453,1220.0,1219.9,0.14335087]
[1672694240889,13.7635393,1220.0,1219.9,0.14335087]
[1672694241566,8.67861453,1220.0,1219.9,0.14335087]
[1672694241939,16.87533453,1220.0,1219.9,0.14335087]
[1672694243412,8.67861453,1220.0,1219.9,0.14335087]
[1672694244847,14.77832362,1220.0,1219.9,0.14335087]
[1672694245051,8.67861453,1220.0,1219.9,0.14335087]
[1672694245263,14.77832362,1220.0,1219.9,0.14335087]
[1672694245824,22.97504362,1220.0,1219.9,0.14335087]
[1672694246558,31.17176362,1220.0,1219.9,0.14335087]
[1672694246982,36.17176362,1220.0,1219.9,0.14335087]
[1672694251133,51.38399241,1220.0,1219.9,5.087e-05]
[1672694251461,4.0,1219.7,1219.6,0.09265615]
[1672694251824,4.0,1219.7,1219.4,30.04265615]
[1672694251825,37.3575766,1219.7,1219.4,30.04265615]
[1672694252130,4.30234172,1219.5,1219.4,0.09265615]
[1672694252346,12.50242172,1219.5,1219.3,0.09265615]
[1672694252514,12.50242172,1219.5,1219.2,30.04265615]
[1672694252515,3.68797062,1219.4,1219.2,30.04265615]
[1672694252728,3.68797062,1219.4,1219.2,0.09265615]
[1672694252938,3.68797062,1219.4,1219.2,4.0]
[1672694253363,3.68797062,1219.4,1219.2,20.40401]
[1672694253721,3.68797062,1219.4,1219.2,20.49666615]
[1672694253903,3.68797062,1219.4,1219.2,28.69875615]
[1672694254310,3.75397062,1219.5,1219.2,28.69875615]
[1672694254515,3.68797062,1219.5,1219.2,28.69875615]
[1672694257437,3.68797062,1219.5,1219.2,30.11575615]
[1672694259584,11.95360062,1219.6,1219.2,30.11575615]
[1672694259769,16.42273464,1219.6,1219.2,30.11575615]
[1672694259995,3.68797062,1219.5,1219.2,30.11575615]
[1672694260820,24.68846464,1219.6,1219.2,30.11575615]
[1672694261049,24.62246464,1219.6,1219.2,30.11575615]
[1672694261262,24.62246464,1219.6,1219.2,30.12543762]
[1672694261472,3.68797062,1219.5,1219.2,30.12543762]
[1672694266080,11.88805062,1219.5,1219.2,30.12543762]
[1672694267327,3.68797062,1219.5,1219.2,30.12543762]
[1672694269107,11.88816062,1219.5,1219.2,21.92334762]
[1672694269631,15.60725626,1219.5,1219.2,21.92334762]
[1672694270965,7.40706626,1219.5,1219.2,21.92334762]
[1672694272266,7.40706626,1219.5,1219.2,21.91983079]
[1672694273533,7.40706626,1219.5,1219.2,30.12192079]
[1672694275728,3.68797062,1219.5,1219.2,30.12192079]
[1672694276170,3.68797062,1219.5,1219.2,34.27078193]
[1672694276463,3.75397062,1219.6,1219.2,34.27078193]
[1672694276723,3.68797062,1219.6,1219.2,34.27078193]
[1672694276935,3.68797062,1219.6,1219.4,24.60225]
[1672694277184,3.68797062,1219.6,1219.4,24.69490615]
[1672694278319,3.68797062,1219.6,1219.4,16.49415615]
[1672694280126,3.68797062,1219.6,1219.4,8.29340615]
[1672694280799,3.68797062,1219.6,1219.4,0.09265615]
[1672694281030,7.82989385,1219.6,1219.3,26.11284615]
[1672694281255,3.68797062,1219.5,1219.3,26.11284615]
[1672694281860,3.68797062,1219.5,1219.3,17.91168615]
[1672694282318,16.09539385,1219.6,1219.3,17.91168615]
[1672694282534,3.68797062,1219.5,1219.3,17.91168615]
[1672694289218,3.68797062,1219.4,1219.3,17.91168615]
[1672694289949,3.68797062,1219.4,1219.3,1.50965615]
[1672694290165,20.46486768,1219.4,1219.2,1.50965615]
[1672694290424,20.46486768,1219.4,1219.2,4.417]
[1672694290642,12.26411768,1219.4,1219.2,8.417]
[1672694290958,12.26411768,1219.4,1219.2,8.50965615]
[1672694292770,12.26411768,1219.4,1219.2,7.09265615]
[1672694292982,8.57614706,1219.4,1219.2,7.09265615]
[1672694294392,3.69039945,1219.3,1219.2,3.09265615]
[1672694294534,3.69039945,1219.3,1219.2,3.0]
[1672694296859,3.69039945,1219.3,1219.2,2.9962672]
[1672694297333,11.89181945,1219.3,1219.1,9.48565615]
[1672694297640,11.89181945,1219.3,1219.1,8.06865615]
[1672694297641,8.20142,1219.3,1219.1,8.06865615]
[1672694297868,8.20142,1219.3,1219.1,0.09265615]
[1672694298165,16.40284,1219.3,1219.1,3.0]
[1672694298397,8.20142,1219.3,1219.1,3.0]
[1672694299216,8.20142,1219.3,1219.1,7.0]
[1672694299373,3.68816631,1219.3,1219.1,11.29541615]
[1672694313451,0.09862563,1219.2,1219.1,11.29541615]
[1672694314180,0.09862563,1219.2,1219.1,19.49818615]
[1672694318291,0.09862563,1219.2,1219.1,19.49556318]
[1672694320336,0.09862563,1219.2,1219.1,11.29279318]
[1672694320545,0.09862563,1219.2,1219.1,3.09003318]
[1672694320762,0.09862563,1219.2,1219.1,2.99737703]
[1672694321361,0.09862563,1219.2,1219.1,11.20014703]
[1672694321654,0.09862563,1219.2,1219.1,11.29280318]